[Event "Early-Titled-Tuesday-Blitz-April-02-2024"]
[Site "Chess.com"]
[Date "2024.04.02"]
[Round "2"]
[White "LLariMarc"]
[Black "Sunny_Star"]
[Result "1-0"]
[WhiteElo "2428"]
[BlackElo "2018"]
[TimeControl "180+1"]
[EndTime "8:16:46 PDT"]
[Termination "LLariMarc won on time"]

1. d4 {[%clk 0:03:00.9]} 1... Nf6 {[%clk 0:02:48.2]} 2. Nf3 {[%clk 0:03:01]}
2... e6 {[%clk 0:02:34.4]} 3. Bg5 {[%clk 0:03:00.4]} 3... d5 {[%clk 0:02:33.4]}
4. Nbd2 {[%clk 0:03:00.1]} 4... Bd6 {[%clk 0:02:32.5]} 5. e3 {[%clk 0:02:59.9]}
5... h6 {[%clk 0:02:28.7]} 6. Bh4 {[%clk 0:02:59.7]} 6... c5 {[%clk 0:02:28.6]}
7. c3 {[%clk 0:02:59.1]} 7... c4 {[%clk 0:02:27.5]} 8. Be2 {[%clk 0:02:55.5]}
8... Nbd7 {[%clk 0:02:22.2]} 9. O-O {[%clk 0:02:52.8]} 9... g5 {[%clk
0:02:14.3]} 10. Bg3 {[%clk 0:02:51]} 10... Bxg3 {[%clk 0:02:12.9]} 11. hxg3
{[%clk 0:02:50.9]} 11... b5 {[%clk 0:01:56.7]} 12. Qc2 {[%clk 0:02:46.5]} 12...
Rb8 {[%clk 0:01:54.4]} 13. e4 {[%clk 0:02:44]} 13... Nf8 {[%clk 0:01:40.9]} 14.
Ne5 {[%clk 0:02:38.4]} 14... Qc7 {[%clk 0:01:39.8]} 15. Rae1 {[%clk 0:02:36.5]}
15... Bb7 {[%clk 0:01:33.2]} 16. Bf3 {[%clk 0:02:34.9]} 16... N8d7 {[%clk
0:01:21.5]} 17. exd5 {[%clk 0:02:32.8]} 17... Nxd5 {[%clk 0:01:20.7]} 18. Bg4
{[%clk 0:02:10.9]} 18... O-O {[%clk 0:01:14.6]} 19. Nxf7 {[%clk 0:02:06]} 19...
Rxf7 {[%clk 0:00:52.7]} 20. Bxe6 {[%clk 0:02:03]} 20... Nf8 {[%clk 0:00:52.3]}
21. Bxf7+ {[%clk 0:01:40.6]} 21... Qxf7 {[%clk 0:00:48.5]} 22. Ne4 {[%clk
0:01:34.1]} 22... Rd8 {[%clk 0:00:40.6]} 23. f3 {[%clk 0:01:30.2]} 23... b4
{[%clk 0:00:31.2]} 24. Qd2 {[%clk 0:01:23]} 24... Ne6 {[%clk 0:00:13.4]} 25. Rf2
{[%clk 0:01:10]} 25... a5 {[%clk 0:00:11.5]} 26. Rfe2 {[%clk 0:01:09.7]} 26...
Ng7 {[%clk 0:00:10.6]} 27. Nc5 {[%clk 0:01:08.7]} 27... Bc6 {[%clk 0:00:10.7]}
28. Ne6 {[%clk 0:01:05.9]} 28... Nxe6 {[%clk 0:00:10.4]} 29. Rxe6 {[%clk
0:01:06.8]} 29... Rc8 {[%clk 0:00:10.8]} 30. Rxh6 {[%clk 0:01:05.2]} 30... bxc3
{[%clk 0:00:11.1]} 31. Qxg5+ {[%clk 0:01:04.7]} 1-0

[Event "Early-Titled-Tuesday-Blitz-April-02-2024"]
[Site "Chess.com"]
[Date "2024.04.02"]
[Round "2"]
[White "Squirlolz"]
[Black "promen1999"]
[Result "0-1"]
[WhiteElo "2603"]
[BlackElo "2887"]
[TimeControl "180+1"]
[EndTime "8:16:51 PDT"]
[Termination "promen1999 won on time"]

1. b3 {[%clk 0:03:00.9]} 1... Nf6 {[%clk 0:02:59.5]} 2. Bb2 {[%clk 0:03:01.8]}
2... g6 {[%clk 0:02:59.4]} 3. Bxf6 {[%clk 0:03:01.7]} 3... exf6 {[%clk
0:03:00.3]} 4. c4 {[%clk 0:03:02.3]} 4... d5 {[%clk 0:02:59.4]} 5. cxd5 {[%clk
0:03:02.5]} 5... Qxd5 {[%clk 0:03:00.1]} 6. Nc3 {[%clk 0:03:02.9]} 6... Qa5
{[%clk 0:03:00.1]} 7. g3 {[%clk 0:03:01.8]} 7... c6 {[%clk 0:02:59.9]} 8. Bg2
{[%clk 0:03:01.8]} 8... Bg7 {[%clk 0:03:00]} 9. Nf3 {[%clk 0:03:01.9]} 9... f5
{[%clk 0:02:59.9]} 10. Qc2 {[%clk 0:03:01]} 10... O-O {[%clk 0:02:59.6]} 11. O-O
{[%clk 0:03:01.3]} 11... Na6 {[%clk 0:02:57.9]} 12. Rac1 {[%clk 0:03:00.6]}
12... Nb4 {[%clk 0:02:56.9]} 13. Qb1 {[%clk 0:02:59]} 13... h6 {[%clk
0:02:52.9]} 14. Rfd1 {[%clk 0:02:50.7]} 14... Be6 {[%clk 0:02:51.7]} 15. d4
{[%clk 0:02:48.7]} 15... Rad8 {[%clk 0:02:50.4]} 16. e3 {[%clk 0:02:42.6]} 16...
Rfe8 {[%clk 0:02:50.2]} 17. Qb2 {[%clk 0:02:40.5]} 17... Nd5 {[%clk 0:02:48.5]}
18. Nxd5 {[%clk 0:02:36.3]} 18... Bxd5 {[%clk 0:02:49.4]} 19. Ne1 {[%clk
0:02:33.9]} 19... h5 {[%clk 0:02:48.1]} 20. Bxd5 {[%clk 0:02:26.7]} 20... Qxd5
{[%clk 0:02:47.3]} 21. Nd3 {[%clk 0:02:25.1]} 21... h4 {[%clk 0:02:40.3]} 22.
Nf4 {[%clk 0:02:24.3]} 22... Qd6 {[%clk 0:02:34.9]} 23. Qe2 {[%clk 0:02:22.1]}
23... g5 {[%clk 0:02:31.3]} 24. Nd3 {[%clk 0:02:21.9]} 24... Qxd4 {[%clk
0:02:28.1]} 25. Nc5 {[%clk 0:01:55.7]} 25... Qb4 {[%clk 0:02:27.4]} 26. Rc4
{[%clk 0:01:46.9]} 26... Qb6 {[%clk 0:02:17.5]} 27. Rxd8 {[%clk 0:01:37.9]}
27... Rxd8 {[%clk 0:02:15.8]} 28. gxh4 {[%clk 0:01:35.8]} 28... Rd5 {[%clk
0:02:15.1]} 29. b4 {[%clk 0:01:32.2]} 29... a5 {[%clk 0:02:05.8]} 30. hxg5
{[%clk 0:00:57]} 30... axb4 {[%clk 0:01:59.7]} 31. Nd3 {[%clk 0:00:56.8]} 31...
Qd8 {[%clk 0:01:59.3]} 32. Nf4 {[%clk 0:00:43.3]} 32... Rd1+ {[%clk 0:01:56.9]}
33. Kg2 {[%clk 0:00:41.2]} 33... Qxg5+ {[%clk 0:01:57.3]} 34. Kh3 {[%clk
0:00:37.8]} 34... Rd2 {[%clk 0:01:54.1]} 35. Qh5 {[%clk 0:00:32]} 35... Qxh5+
{[%clk 0:01:52.1]} 36. Nxh5 {[%clk 0:00:32.9]} 36... Bc3 {[%clk 0:01:49.1]} 37.
a3 {[%clk 0:00:30.5]} 37... b5 {[%clk 0:01:37.1]} 38. Rxc6 {[%clk 0:00:30.5]}
38... bxa3 {[%clk 0:01:36.3]} 39. Rxc3 {[%clk 0:00:30.7]} 39... a2 {[%clk
0:01:36.9]} 40. Ra3 {[%clk 0:00:28.2]} 40... b4 {[%clk 0:01:36.5]} 41. Ra8+
{[%clk 0:00:24.9]} 41... Kh7 {[%clk 0:01:37]} 42. Kg2 {[%clk 0:00:05.4]} 42...
b3 {[%clk 0:01:36.4]} 43. Ng3 {[%clk 0:00:04.6]} 43... Rd5 {[%clk 0:01:31.5]}
44. e4 {[%clk 0:00:02.5]} 44... Rb5 {[%clk 0:01:27.5]} 45. Nxf5 {[%clk
0:00:01.8]} 45... b2 {[%clk 0:01:26.8]} 46. Rxa2 {[%clk 0:00:01.6]} 46... b1=Q
{[%clk 0:01:26.3]} 0-1

[Event "Early-Titled-Tuesday-Blitz-April-02-2024"]
[Site "Chess.com"]
[Date "2024.04.02"]
[Round "2"]
[White "rionelG"]
[Black "viktorgen2021"]
[Result "0-1"]
[WhiteElo "2196"]
[BlackElo "2491"]
[TimeControl "180+1"]
[EndTime "8:16:52 PDT"]
[Termination "viktorgen2021 won by resignation"]

1. e4 {[%clk 0:03:00.9]} 1... g6 {[%clk 0:02:59.2]} 2. d4 {[%clk 0:03:00.5]}
2... Bg7 {[%clk 0:02:59.8]} 3. c3 {[%clk 0:03:00.6]} 3... d6 {[%clk 0:02:59.8]}
4. h3 {[%clk 0:02:58.8]} 4... Nc6 {[%clk 0:03:00.1]} 5. Nf3 {[%clk 0:02:58.1]}
5... e5 {[%clk 0:02:59.6]} 6. Bg5 {[%clk 0:02:49.3]} 6... Nf6 {[%clk 0:02:58.1]}
7. Bd3 {[%clk 0:02:47.1]} 7... O-O {[%clk 0:02:57.3]} 8. O-O {[%clk 0:02:44.1]}
8... h6 {[%clk 0:02:57.8]} 9. Be3 {[%clk 0:02:22.4]} 9... Nh5 {[%clk 0:02:55.4]}
10. Re1 {[%clk 0:02:10.3]} 10... Nf4 {[%clk 0:02:53.4]} 11. Bf1 {[%clk
0:02:06.2]} 11... Qf6 {[%clk 0:02:52.9]} 12. dxe5 {[%clk 0:02:00]} 12... dxe5
{[%clk 0:02:53.8]} 13. Nbd2 {[%clk 0:01:56.4]} 13... Be6 {[%clk 0:02:52.6]} 14.
Nb3 {[%clk 0:01:50.9]} 14... Rad8 {[%clk 0:02:51]} 15. Qc2 {[%clk 0:01:51]}
15... Nxh3+ {[%clk 0:02:50.3]} 16. gxh3 {[%clk 0:01:45.7]} 16... Qxf3 {[%clk
0:02:49.5]} 17. Bg2 {[%clk 0:01:45.8]} 17... Qh5 {[%clk 0:02:48.3]} 18. Kh2
{[%clk 0:01:44.9]} 18... b6 {[%clk 0:02:41.9]} 19. Rad1 {[%clk 0:01:37.7]} 19...
Bg4 {[%clk 0:02:35.4]} 20. Rxd8 {[%clk 0:01:35.4]} 20... Rxd8 {[%clk 0:02:36.3]}
21. Nd2 {[%clk 0:01:25.4]} 21... Kh7 {[%clk 0:02:35.4]} 22. Nf1 {[%clk
0:01:24.1]} 22... Be6 {[%clk 0:02:23.1]} 23. Qa4 {[%clk 0:01:03]} 23... Rd6
{[%clk 0:02:22.7]} 24. Ng3 {[%clk 0:00:56.8]} 24... Qh4 {[%clk 0:02:22.7]} 25.
Rd1 {[%clk 0:00:56.5]} 25... Qe7 {[%clk 0:02:22.2]} 26. Rxd6 {[%clk 0:00:49.2]}
26... Qxd6 {[%clk 0:02:22.4]} 27. Qa6 {[%clk 0:00:34.4]} 27... Bd7 {[%clk
0:02:11]} 28. Bf1 {[%clk 0:00:31.9]} 28... f5 {[%clk 0:02:05.5]} 29. exf5 {[%clk
0:00:30.2]} 29... gxf5 {[%clk 0:02:06.4]} 30. Nh5 {[%clk 0:00:24.1]} 30... f4
{[%clk 0:01:58.3]} 31. Nxg7 {[%clk 0:00:21.3]} 31... fxe3 {[%clk 0:01:48.2]} 32.
Nh5 {[%clk 0:00:13.8]} 32... e4+ {[%clk 0:01:44]} 33. Kg1 {[%clk 0:00:11.3]}
33... exf2+ {[%clk 0:01:43.6]} 34. Kxf2 {[%clk 0:00:10.9]} 34... Qc5+ {[%clk
0:01:40.8]} 35. Ke1 {[%clk 0:00:09.6]} 35... Qxh5 {[%clk 0:01:40.5]} 36. Qc4
{[%clk 0:00:08.5]} 36... Qh4+ {[%clk 0:01:39]} 37. Kd1 {[%clk 0:00:07.5]} 37...
Qe7 {[%clk 0:01:35.4]} 38. Be2 {[%clk 0:00:04.9]} 38... Ne5 {[%clk 0:01:22.7]}
39. Qxe4+ {[%clk 0:00:04.6]} 39... Ng6 {[%clk 0:01:23]} 40. Qd3 {[%clk
0:00:03.7]} 40... Qd6 {[%clk 0:01:23]} 41. Kc2 {[%clk 0:00:03.4]} 41... Qxd3+
{[%clk 0:01:22.8]} 42. Bxd3 {[%clk 0:00:04.3]} 42... Kg7 {[%clk 0:01:23.5]} 43.
h4 {[%clk 0:00:03.5]} 43... Nxh4 {[%clk 0:01:23.7]} 0-1

[Event "Early-Titled-Tuesday-Blitz-April-02-2024"]
[Site "Chess.com"]
[Date "2024.04.02"]
[Round "2"]
[White "Chernov_Alexander_A"]
[Black "AA95"]
[Result "0-1"]
[WhiteElo "2205"]
[BlackElo "2498"]
[TimeControl "180+1"]
[EndTime "8:16:54 PDT"]
[Termination "AA95 won by resignation"]

1. d4 {[%clk 0:03:00.9]} 1... Nf6 {[%clk 0:02:59.6]} 2. Nf3 {[%clk 0:02:59.6]}
2... g6 {[%clk 0:02:59.8]} 3. Nc3 {[%clk 0:02:58.7]} 3... d5 {[%clk 0:02:59]} 4.
Bg5 {[%clk 0:02:58.2]} 4... Bg7 {[%clk 0:02:59.1]} 5. e3 {[%clk 0:02:58.2]} 5...
O-O {[%clk 0:02:59.3]} 6. Bd3 {[%clk 0:02:58.4]} 6... h6 {[%clk 0:02:58.2]} 7.
Bh4 {[%clk 0:02:57.7]} 7... Nbd7 {[%clk 0:02:56.2]} 8. O-O {[%clk 0:02:57.4]}
8... c5 {[%clk 0:02:56.5]} 9. Re1 {[%clk 0:02:57.2]} 9... b6 {[%clk 0:02:45.5]}
10. e4 {[%clk 0:02:52.3]} 10... dxe4 {[%clk 0:02:43.2]} 11. Nxe4 {[%clk
0:02:51.3]} 11... Bb7 {[%clk 0:02:43.6]} 12. dxc5 {[%clk 0:02:42.3]} 12... Nxe4
{[%clk 0:02:13.4]} 13. Bxe4 {[%clk 0:02:41.1]} 13... Bxe4 {[%clk 0:02:13.5]} 14.
Rxe4 {[%clk 0:02:40.3]} 14... Nxc5 {[%clk 0:02:13.9]} 15. Qxd8 {[%clk
0:02:24.2]} 15... Rfxd8 {[%clk 0:02:09.6]} 16. Rxe7 {[%clk 0:02:23.5]} 16... g5
{[%clk 0:02:05.2]} 17. Bg3 {[%clk 0:02:22.7]} 17... Bxb2 {[%clk 0:02:05.3]} 18.
Rb1 {[%clk 0:02:14.7]} 18... Bf6 {[%clk 0:02:00.4]} 19. Rc7 {[%clk 0:01:51.4]}
19... Rdc8 {[%clk 0:01:37.7]} 20. Rxc8+ {[%clk 0:01:48.4]} 20... Rxc8 {[%clk
0:01:36.6]} 21. Be5 {[%clk 0:01:35.4]} 21... Bxe5 {[%clk 0:01:32.9]} 22. Nxe5
{[%clk 0:01:35.1]} 22... Na4 {[%clk 0:01:30.1]} 23. h4 {[%clk 0:01:24.9]} 23...
Rxc2 {[%clk 0:01:27.6]} 24. hxg5 {[%clk 0:01:22]} 24... hxg5 {[%clk 0:01:28.5]}
25. Rd1 {[%clk 0:01:15.2]} 25... Rc7 {[%clk 0:01:13.6]} 26. g4 {[%clk
0:01:02.3]} 26... Nc3 {[%clk 0:01:11.7]} 27. Rd2 {[%clk 0:01:00.8]} 27... f6
{[%clk 0:01:08.7]} 28. Nf3 {[%clk 0:00:56.2]} 28... Kf7 {[%clk 0:01:08.3]} 29.
Nd4 {[%clk 0:00:55.6]} 29... Rc4 {[%clk 0:00:53.4]} 30. Kg2 {[%clk 0:00:51.5]}
30... Ra4 {[%clk 0:00:47.4]} 31. Rd3 {[%clk 0:00:42.9]} 31... Nxa2 {[%clk
0:00:42.1]} 32. f3 {[%clk 0:00:42.4]} 32... Nb4 {[%clk 0:00:41]} 33. Rc3 {[%clk
0:00:35.3]} 33... Nd5 {[%clk 0:00:40.4]} 0-1

[Event "Early-Titled-Tuesday-Blitz-April-02-2024"]
[Site "Chess.com"]
[Date "2024.04.02"]
[Round "2"]
[White "JiaHaoxiang"]
[Black "Suduvasachmatai"]
[Result "1-0"]
[WhiteElo "2567"]
[BlackElo "2258"]
[TimeControl "180+1"]
[EndTime "8:16:55 PDT"]
[Termination "JiaHaoxiang won by resignation"]

1. d4 {[%clk 0:03:00.9]} 1... Nf6 {[%clk 0:02:59.3]} 2. Nf3 {[%clk 0:03:00.7]}
2... e6 {[%clk 0:02:59.1]} 3. Bf4 {[%clk 0:02:58.8]} 3... c5 {[%clk 0:02:58.8]}
4. e3 {[%clk 0:02:59.2]} 4... Nc6 {[%clk 0:02:58.4]} 5. c3 {[%clk 0:02:58.5]}
5... d5 {[%clk 0:02:57.9]} 6. Nbd2 {[%clk 0:02:57.3]} 6... cxd4 {[%clk
0:02:56.7]} 7. exd4 {[%clk 0:02:56.1]} 7... Bd6 {[%clk 0:02:53.8]} 8. Bg3 {[%clk
0:02:56.1]} 8... O-O {[%clk 0:02:53.1]} 9. Bd3 {[%clk 0:02:55.3]} 9... h6 {[%clk
0:02:52.5]} 10. Ne5 {[%clk 0:02:53.5]} 10... Bxe5 {[%clk 0:02:50.4]} 11. dxe5
{[%clk 0:02:49.5]} 11... Nd7 {[%clk 0:02:50]} 12. Qe2 {[%clk 0:02:47.7]} 12...
Nc5 {[%clk 0:02:47.2]} 13. Bb1 {[%clk 0:02:43.1]} 13... d4 {[%clk 0:02:47.3]}
14. O-O {[%clk 0:02:38.7]} 14... Na4 {[%clk 0:02:25.7]} 15. Nc4 {[%clk
0:02:24.5]} 15... b5 {[%clk 0:02:01.2]} 16. Qe4 {[%clk 0:02:10.8]} 16... g6
{[%clk 0:01:54.9]} 17. Qxc6 {[%clk 0:02:09.8]} 17... Bd7 {[%clk 0:01:48.9]} 18.
Qe4 {[%clk 0:01:48.8]} 18... dxc3 {[%clk 0:01:37.4]} 19. bxc3 {[%clk 0:01:40.2]}
19... Nxc3 {[%clk 0:01:33.2]} 20. Qe3 {[%clk 0:01:32.9]} 20... Nd5 {[%clk
0:01:28.9]} 21. Qxh6 {[%clk 0:01:31.5]} 21... bxc4 {[%clk 0:01:26.6]} 22. Bh4
{[%clk 0:01:30.2]} 22... Qxh4 {[%clk 0:00:41.7]} 23. Qxh4 {[%clk 0:01:28.8]}
23... c3 {[%clk 0:00:42.1]} 24. Be4 {[%clk 0:01:23.6]} 24... Bb5 {[%clk
0:00:33.3]} 25. Rfc1 {[%clk 0:01:22.3]} 25... Rac8 {[%clk 0:00:31.7]} 26. Qg3
{[%clk 0:01:16.3]} 26... c2 {[%clk 0:00:21.7]} 27. Rxc2 {[%clk 0:00:57]} 27...
Nc3 {[%clk 0:00:15.4]} 28. Bxg6 {[%clk 0:00:51]} 28... Ne2+ {[%clk 0:00:12.8]}
29. Rxe2 {[%clk 0:00:50.5]} 29... Bxe2 {[%clk 0:00:13.5]} 30. Be4+ {[%clk
0:00:44]} 1-0

[Event "Early-Titled-Tuesday-Blitz-April-02-2024"]
[Site "Chess.com"]
[Date "2024.04.02"]
[Round "2"]
[White "MetiForce"]
[Black "ReadySkate"]
[Result "1-0"]
[WhiteElo "2872"]
[BlackElo "2598"]
[TimeControl "180+1"]
[EndTime "8:17:02 PDT"]
[Termination "MetiForce won by resignation"]

1. Nf3 {[%clk 0:03:00.9]} 1... Nf6 {[%clk 0:02:59.2]} 2. g3 {[%clk 0:02:59.2]}
2... g6 {[%clk 0:02:59.5]} 3. Bg2 {[%clk 0:02:58.5]} 3... Bg7 {[%clk 0:02:59.7]}
4. O-O {[%clk 0:02:59.2]} 4... O-O {[%clk 0:03:00.2]} 5. c4 {[%clk 0:02:59]}
5... c6 {[%clk 0:03:00]} 6. d4 {[%clk 0:02:58.1]} 6... d5 {[%clk 0:03:00.4]} 7.
Ne5 {[%clk 0:02:58.8]} 7... Nbd7 {[%clk 0:02:58.3]} 8. cxd5 {[%clk 0:02:48.4]}
8... Nxe5 {[%clk 0:02:55]} 9. dxe5 {[%clk 0:02:48.6]} 9... Nxd5 {[%clk
0:02:55.6]} 10. f4 {[%clk 0:02:45.8]} 10... Qb6+ {[%clk 0:02:52.8]} 11. Kh1
{[%clk 0:02:45.9]} 11... Ne3 {[%clk 0:02:53.2]} 12. Bxe3 {[%clk 0:02:45.6]}
12... Qxe3 {[%clk 0:02:54.1]} 13. Nc3 {[%clk 0:02:45.9]} 13... Bg4 {[%clk
0:02:53]} 14. Qb3 {[%clk 0:02:44.4]} 14... Rab8 {[%clk 0:02:46]} 15. Qa3 {[%clk
0:02:43.3]} 15... Rfe8 {[%clk 0:02:41]} 16. Rad1 {[%clk 0:02:39.8]} 16... h5
{[%clk 0:02:39.4]} 17. Rd3 {[%clk 0:02:26.9]} 17... Qb6 {[%clk 0:02:37.1]} 18.
h3 {[%clk 0:02:25]} 18... Be6 {[%clk 0:02:35.2]} 19. Rfd1 {[%clk 0:02:22.5]}
19... a6 {[%clk 0:02:27.5]} 20. Ne4 {[%clk 0:02:22.8]} 20... Bf8 {[%clk
0:02:25.9]} 21. b3 {[%clk 0:02:13]} 21... Red8 {[%clk 0:02:25.4]} 22. Qc5 {[%clk
0:02:08.2]} 22... Qc7 {[%clk 0:02:21]} 23. Ng5 {[%clk 0:02:05.6]} 23... Rxd3
{[%clk 0:02:14]} 24. Rxd3 {[%clk 0:02:06.5]} 24... Bf5 {[%clk 0:02:11.1]} 25. e4
{[%clk 0:02:04.4]} 25... Bc8 {[%clk 0:02:11.4]} 26. Qd4 {[%clk 0:01:58.6]} 26...
h4 {[%clk 0:01:54.6]} 27. gxh4 {[%clk 0:01:39.7]} 27... Qa5 {[%clk 0:01:44.6]}
28. Qd8 {[%clk 0:01:16.9]} 28... Qe1+ {[%clk 0:01:41.6]} 29. Kh2 {[%clk
0:01:17]} 29... Qf2 {[%clk 0:01:35]} 30. Rg3 {[%clk 0:00:32.3]} 30... Bxh3
{[%clk 0:01:22.8]} 31. Qxb8 {[%clk 0:00:20.5]} 31... Bxg2 {[%clk 0:01:21.9]} 32.
Rxg2 {[%clk 0:00:21.4]} 32... Qxh4+ {[%clk 0:01:20.6]} 33. Nh3 {[%clk
0:00:21.8]} 33... Kg7 {[%clk 0:01:18.6]} 34. Qa7 {[%clk 0:00:19.6]} 34... e6
{[%clk 0:01:16.7]} 35. Qf2 {[%clk 0:00:19.7]} 35... Qh5 {[%clk 0:01:17.2]} 36.
Qg3 {[%clk 0:00:19.4]} 36... Be7 {[%clk 0:01:16.3]} 37. Qg4 {[%clk 0:00:19.9]}
37... Qh6 {[%clk 0:01:14.8]} 38. f5 {[%clk 0:00:20.4]} 38... exf5 {[%clk
0:01:15.7]} 39. exf5 {[%clk 0:00:21.3]} 39... Qe3 {[%clk 0:01:16.1]} 40. f6+
{[%clk 0:00:21.2]} 40... Kg8 {[%clk 0:01:14.1]} 41. fxe7 {[%clk 0:00:21.3]}
41... Qxe5+ {[%clk 0:01:14.7]} 42. Qf4 {[%clk 0:00:21.6]} 42... Qxe7 {[%clk
0:01:15.2]} 43. Ng5 {[%clk 0:00:22.2]} 43... f5 {[%clk 0:01:13.3]} 44. Rd2
{[%clk 0:00:21.3]} 44... Kg7 {[%clk 0:01:09.8]} 45. Qd4+ {[%clk 0:00:20.4]}
45... Kh6 {[%clk 0:01:10.2]} 46. Qh4+ {[%clk 0:00:20.5]} 46... Kg7 {[%clk
0:01:10.3]} 47. Qh7+ {[%clk 0:00:20.6]} 1-0

[Event "Early-Titled-Tuesday-Blitz-April-02-2024"]
[Site "Chess.com"]
[Date "2024.04.02"]
[Round "2"]
[White "SlavenPastar"]
[Black "bubeliang"]
[Result "0-1"]
[WhiteElo "2571"]
[BlackElo "2777"]
[TimeControl "180+1"]
[EndTime "8:17:05 PDT"]
[Termination "bubeliang won by checkmate"]

1. Nf3 {[%clk 0:02:50]} 1... c5 {[%clk 0:02:55]} 2. g3 {[%clk 0:02:50]} 2... Nc6
{[%clk 0:02:55]} 3. Bg2 {[%clk 0:02:50.5]} 3... Nf6 {[%clk 0:02:50.7]} 4. b3
{[%clk 0:02:49.3]} 4... g6 {[%clk 0:02:47.8]} 5. Bb2 {[%clk 0:02:49.1]} 5... Bg7
{[%clk 0:02:43.7]} 6. c4 {[%clk 0:02:21.6]} 6... O-O {[%clk 0:02:41.6]} 7. O-O
{[%clk 0:02:21.7]} 7... e6 {[%clk 0:02:39]} 8. d4 {[%clk 0:02:18.9]} 8... cxd4
{[%clk 0:02:28.9]} 9. Nxd4 {[%clk 0:02:17.9]} 9... d5 {[%clk 0:02:29.4]} 10.
cxd5 {[%clk 0:02:14]} 10... Nxd5 {[%clk 0:02:28.6]} 11. Nxc6 {[%clk 0:02:12.1]}
11... bxc6 {[%clk 0:02:28.6]} 12. Bxg7 {[%clk 0:02:12.3]} 12... Kxg7 {[%clk
0:02:29.5]} 13. Qc2 {[%clk 0:01:54.7]} 13... Qf6 {[%clk 0:02:26.3]} 14. Nd2
{[%clk 0:01:51]} 14... Ba6 {[%clk 0:01:53.8]} 15. Ne4 {[%clk 0:01:38.8]} 15...
Qe5 {[%clk 0:01:54.1]} 16. Rfe1 {[%clk 0:01:30.8]} 16... Nb4 {[%clk 0:01:42.9]}
17. Qc1 {[%clk 0:01:10.6]} 17... Rad8 {[%clk 0:01:33]} 18. a3 {[%clk 0:01:07.5]}
18... Nd5 {[%clk 0:01:25.9]} 19. Qxc6 {[%clk 0:00:57.5]} 19... Bxe2 {[%clk
0:01:15.9]} 20. Rac1 {[%clk 0:00:27.3]} 20... Rc8 {[%clk 0:00:59.2]} 21. Qd6
{[%clk 0:00:27.5]} 21... Qb2 {[%clk 0:00:42.2]} 22. Nc5 {[%clk 0:00:19.5]} 22...
Rfd8 {[%clk 0:00:28.6]} 23. Nd7 {[%clk 0:00:02.8]} 23... Rxc1 {[%clk 0:00:26.1]}
24. Rxc1 {[%clk 0:00:01.6]} 24... Qxc1+ {[%clk 0:00:27]} 25. Bf1 {[%clk
0:00:01.5]} 25... Qxf1# {[%clk 0:00:27.9]} 0-1

[Event "Early-Titled-Tuesday-Blitz-April-02-2024"]
[Site "Chess.com"]
[Date "2024.04.02"]
[Round "2"]
[White "Cheer_Down"]
[Black "Dewarfd"]
[Result "1-0"]
[WhiteElo "2438"]
[BlackElo "2123"]
[TimeControl "180+1"]
[EndTime "8:17:05 PDT"]
[Termination "Cheer_Down won on time"]

1. e4 {[%clk 0:03:00.9]} 1... c5 {[%clk 0:02:22.3]} 2. Nf3 {[%clk 0:02:59.1]}
2... g6 {[%clk 0:02:21.6]} 3. c3 {[%clk 0:02:58.2]} 3... Bg7 {[%clk 0:02:20.7]}
4. d4 {[%clk 0:02:58.2]} 4... cxd4 {[%clk 0:02:21.6]} 5. cxd4 {[%clk 0:02:58.5]}
5... d5 {[%clk 0:02:22.5]} 6. e5 {[%clk 0:02:58.5]} 6... Nc6 {[%clk 0:02:21.6]}
7. Bb5 {[%clk 0:02:58.2]} 7... Nh6 {[%clk 0:02:21.1]} 8. O-O {[%clk 0:02:51.1]}
8... O-O {[%clk 0:02:21.1]} 9. Bxc6 {[%clk 0:02:51]} 9... bxc6 {[%clk
0:02:20.6]} 10. Nc3 {[%clk 0:02:45.9]} 10... Bg4 {[%clk 0:02:20.1]} 11. h3
{[%clk 0:02:38.1]} 11... Bxf3 {[%clk 0:02:20]} 12. Qxf3 {[%clk 0:02:39]} 12...
Nf5 {[%clk 0:02:17.7]} 13. Qd3 {[%clk 0:02:36.5]} 13... f6 {[%clk 0:02:00.8]}
14. exf6 {[%clk 0:02:30.3]} 14... Bxf6 {[%clk 0:01:56]} 15. Be3 {[%clk
0:02:28.6]} 15... e5 {[%clk 0:01:51.8]} 16. Ne2 {[%clk 0:02:08.2]} 16... e4
{[%clk 0:01:36.9]} 17. Qd2 {[%clk 0:02:04.9]} 17... Nxe3 {[%clk 0:01:34.1]} 18.
fxe3 {[%clk 0:02:04.3]} 18... Bg5 {[%clk 0:01:28.5]} 19. Ng3 {[%clk 0:01:55.3]}
19... Qd6 {[%clk 0:01:22.5]} 20. Rxf8+ {[%clk 0:01:53.5]} 20... Rxf8 {[%clk
0:01:21.6]} 21. Nf1 {[%clk 0:01:54.1]} 21... Qf6 {[%clk 0:01:08]} 22. Qe2 {[%clk
0:01:44.7]} 22... Bh4 {[%clk 0:01:01.8]} 23. Rc1 {[%clk 0:01:36.5]} 23... Bf2+
{[%clk 0:00:50.4]} 24. Kh1 {[%clk 0:01:34.1]} 24... h5 {[%clk 0:00:27.4]} 25. b4
{[%clk 0:01:18]} 25... h4 {[%clk 0:00:23]} 26. b5 {[%clk 0:01:18]} 26... cxb5
{[%clk 0:00:17.5]} 27. Qxb5 {[%clk 0:01:18]} 27... Bg3 {[%clk 0:00:14.2]} 28.
Qxd5+ {[%clk 0:01:14.9]} 28... Kh7 {[%clk 0:00:13.3]} 29. Qc4 {[%clk 0:01:06.9]}
29... Rb8 {[%clk 0:00:09.7]} 30. Nxg3 {[%clk 0:00:57.2]} 30... hxg3 {[%clk
0:00:09.1]} 31. Qc7+ {[%clk 0:00:57]} 31... Kh6 {[%clk 0:00:09.1]} 32. Qxb8
{[%clk 0:00:57]} 32... Qf2 {[%clk 0:00:08.5]} 33. Qb3 {[%clk 0:00:54]} 33... Qd2
{[%clk 0:00:05.6]} 34. Qc3 {[%clk 0:00:53.4]} 34... Qxa2 {[%clk 0:00:03.7]} 35.
Rd1 {[%clk 0:00:49.5]} 35... Qe2 {[%clk 0:00:01.2]} 36. Qe1 {[%clk 0:00:49]} 1-0